bitfinex/quotes_SOLUSD_20240621
["timestamp","ask_amount","ask_price","bid_price","bid_amount"]
[1718941892608,0.8161767,132.82,132.77,20.0]
[1718941894112,0.8161767,132.82,132.78,6.3732]
[1718941894313,0.8161767,132.82,132.79,20.0]
[1718941900718,0.8161767,132.82,132.8,15.3675]
[1718941900913,0.8161767,132.82,132.81,20.0]
[1718941904113,0.8161767,132.82,132.8,15.3675]
[1718941904890,0.8161767,132.82,132.78,6.3732]
[1718941905095,0.8161767,132.82,132.79,20.0]
[1718941906504,0.8161767,132.82,132.78,20.0]
[1718941911117,0.17,132.81,132.78,20.0]
[1718941915420,9.72,132.81,132.78,20.0]
[1718941917410,9.72,132.8,132.78,20.0]
[1718941917611,9.72,132.8,132.75,20.0]
[1718941917826,9.55,132.79,132.75,20.0]
[1718941918219,0.17,132.81,132.75,20.0]
[1718941918406,0.9861767,132.82,132.76,9.55]
[1718941918407,0.8161767,132.82,132.76,9.55]
[1718941918608,10.3661767,132.82,132.77,29.55]
[1718941918907,0.8161767,132.82,132.78,20.0]
[1718941919217,10.3661767,132.82,132.78,20.0]
[1718941919608,10.3661767,132.82,132.77,20.0]
[1718941919829,10.3661767,132.82,132.77,29.55]
[1718941920031,10.3661767,132.82,132.77,20.0]
[1718941920817,0.8161767,132.82,132.77,29.55]
[1718941923115,10.3661767,132.82,132.77,20.0]
[1718941923320,10.3661767,132.82,132.74,15.3764]
[1718941923321,10.3661767,132.82,132.75,20.0]
[1718941923828,9.55,132.81,132.75,29.55]
[1718941924331,0.8161767,132.82,132.75,29.55]
[1718941924633,0.8161767,132.82,132.75,20.0]
[1718941924928,0.8161767,132.82,132.77,9.55]
[1718941925132,0.8161767,132.82,132.78,20.0]
[1718941927231,0.8161767,132.82,132.77,9.55]
[1718941927436,0.8161767,132.82,132.78,20.0]
[1718941930123,0.8161767,132.82,132.77,9.55]
[1718941930437,0.8161767,132.82,132.78,20.0]
[1718941931441,10.3661767,132.82,132.78,20.0]
[1718941931739,10.3661767,132.82,132.77,20.0]
[1718941932329,0.8161767,132.82,132.77,29.55]
[1718941934628,0.8161767,132.82,132.77,20.0]
[1718941934830,0.8161767,132.82,132.74,15.3764]
[1718941934831,9.55,132.8,132.75,20.0]
[1718941935034,9.55,132.79,132.75,20.0]
[1718941935238,9.55,132.78,132.75,20.0]
[1718941935426,9.55,132.78,132.72,30.86259913]
[1718941935641,6.4543,132.8,132.72,21.31259913]
[1718941935642,9.55,132.77,132.72,21.31259913]
[1718941935839,9.55,132.76,132.72,20.0]
[1718941936040,9.55,132.76,132.7,29.55]
[1718941937544,9.55,132.76,132.68,31.8788]
[1718941937545,9.55,132.74,132.68,25.2242]
[1718941938037,9.55,132.74,132.69,9.55]
[1718941938223,9.55,132.73,132.67,1.31297728]
[1718941938422,9.55,132.72,132.67,1.31297728]
[1718941938622,9.55,132.72,132.66,9.55]
[1718941939236,9.55,132.72,132.67,20.0]
[1718941939539,0.17,132.73,132.67,20.0]
[1718941939745,0.17,132.73,132.64,15.6742]
[1718941940049,0.34,132.73,132.64,15.6742]
[1718941940235,0.17,132.72,132.64,15.6742]
[1718941940428,0.17,132.73,132.64,15.6742]
[1718941940637,6.4543,132.75,132.65,0.17]
[1718941940944,6.4543,132.75,132.65,0.51]
[1718941941251,6.4543,132.75,132.65,20.0]
[1718941941552,0.51,132.74,132.65,20.0]
[1718941942128,45.51,132.74,132.65,20.0]
[1718941942536,45.51,132.74,132.63,21.31378202]
[1718941942743,45.51,132.74,132.63,1.31378202]
[1718941942927,45.51,132.74,132.62,20.0]
[1718941943327,0.51,132.74,132.62,20.0]
[1718941944044,0.51,132.74,132.62,42.69]
[1718941944248,0.51,132.74,132.63,0.51]
[1718941945636,16.234,132.73,132.62,20.0]
[1718941945836,0.34,132.72,132.62,20.0]
[1718941946142,0.17,132.71,132.62,20.0]
[1718941946348,6.6588,132.7,132.62,20.0]
[1718941946521,0.51,132.69,132.62,20.0]
[1718941947234,0.17,132.69,132.62,20.0]
[1718941947442,0.34,132.69,132.62,20.0]
[1718941947648,0.51,132.69,132.62,20.0]
[1718941947847,0.51,132.69,132.61,1.31405921]
[1718941948042,0.17,132.69,132.61,1.31405921]
[1718941948347,0.51,132.69,132.61,1.31405921]
[1718941949050,0.34,132.69,132.61,1.31405921]
[1718941949235,0.17,132.69,132.61,1.31405921]
[1718941949430,6.6588,132.7,132.61,1.31405921]
[1718941949636,6.6588,132.7,132.62,0.17]
[1718941949839,6.6588,132.7,132.62,0.34]
[1718941950847,6.6588,132.7,132.63,15.4904]
[1718941951147,6.6588,132.7,132.64,20.0]
[1718941953930,16.3395,132.69,132.61,21.31405921]
[1718941954548,15.9995,132.69,132.61,21.31405921]
[1718941958351,15.9995,132.69,132.61,43.99405921]
[1718941958551,6.6588,132.7,132.62,0.51]
[1718941958753,21.7059,132.73,132.62,0.51]
[1718941960733,0.17,132.72,132.62,0.51]
[1718941961362,0.17,132.72,132.65,9.57]
[1718941961661,9.57,132.71,132.65,9.57]
[1718941961846,9.57,132.71,132.66,20.0]
[1718941962242,0.17,132.72,132.66,20.0]
[1718941962440,9.57,132.69,132.65,20.0]
[1718941962933,9.57,132.69,132.64,20.0]
[1718941965752,15.9246,132.68,132.64,20.0]
[1718941965952,30.939,132.68,132.64,20.0]
[1718941966171,30.939,132.68,132.62,9.57]
[1718941966465,30.939,132.68,132.63,20.0]
[1718941966847,9.57,132.67,132.63,20.0]
[1718941967166,9.57,132.67,132.62,9.57]
[1718941967338,9.57,132.67,132.63,20.0]
[1718941967937,9.57,132.67,132.62,20.0]
[1718941968153,9.57,132.67,132.62,29.57]
[1718941969168,21.369,132.68,132.62,29.57]
[1718941969354,30.939,132.68,132.63,9.57]
[1718941969554,21.369,132.68,132.63,9.57]
[1718941969762,21.369,132.68,132.64,20.0]
[1718941970758,21.941,132.71,132.66,9.57]
[1718941970964,21.941,132.71,132.67,20.0]
[1718941971557,31.511,132.71,132.67,20.0]
[1718941972473,21.941,132.71,132.67,20.0]
[1718941974869,31.511,132.71,132.67,20.0]
[1718941975759,9.91,132.7,132.64,9.57]
[1718941975961,9.91,132.7,132.65,20.0]
[1718941978970,21.941,132.71,132.65,20.0]
[1718941979166,21.941,132.71,132.66,9.57]
[1718941979376,21.941,132.71,132.67,20.0]
[1718941980958,31.511,132.71,132.67,20.0]
[1718941981158,21.941,132.71,132.67,20.0]
[1718941981865,22.2857,132.74,132.67,20.0]
[1718941982375,22.2857,132.74,132.72,9.57]
[1718941982554,22.2857,132.74,132.73,20.0]
[1718941984149,22.2857,132.74,132.72,20.0]
[1718941984462,22.2857,132.74,132.71,20.0]
[1718941984880,22.2857,132.74,132.71,29.57]
[1718941985657,6.4784,132.77,132.72,9.57]
[1718941985963,6.4784,132.77,132.73,20.0]
[1718941986581,16.0484,132.77,132.73,20.0]
[1718941986788,9.57,132.76,132.71,9.57]
[1718941986956,9.57,132.76,132.72,20.0]
[1718941987278,9.57,132.76,132.7,9.57]
[1718941987473,9.57,132.76,132.71,20.0]
[1718941989285,9.57,132.72,132.63,21.5341]
[1718941989580,9.57,132.71,132.65,9.57]
[1718941990491,9.57,132.71,132.66,20.0]
[1718941990663,9.57,132.71,132.66,29.57]
[1718941992079,9.57,132.72,132.66,29.57]
[1718941992268,9.57,132.72,132.66,20.0]
[1718941992463,15.5192,132.71,132.64,20.0]
[1718941992667,9.57,132.69,132.64,29.57]
[1718941992867,9.57,132.69,132.64,20.0]
[1718941993686,9.57,132.69,132.64,29.57]
[1718941994866,15.5192,132.71,132.64,20.0]
[1718941995066,15.5192,132.71,132.68,9.57]
[1718941995273,6.2947,132.72,132.69,20.0]
[1718941995673,15.8407,132.74,132.7,9.57]
[1718941995879,22.3039,132.78,132.72,9.57]
[1718941996071,9.57,132.77,132.73,20.0]
[1718941996259,22.3039,132.78,132.73,20.0]
[1718941996461,9.57,132.76,132.73,20.0]
[1718941996684,9.57,132.76,132.72,20.0]
[1718941997284,9.57,132.76,132.71,20.0]
[1718941997495,0.17,132.75,132.71,20.0]
[1718941997784,0.17,132.76,132.67,20.0]
[1718941998879,15.0921,132.74,132.65,20.0]
[1718941999088,0.51,132.73,132.64,20.0]
[1718942000668,0.51,132.73,132.61,20.0]
[1718942001980,0.51,132.73,132.61,42.68]
[1718942002184,0.17,132.73,132.61,42.68]
[1718942002384,15.0921,132.74,132.64,51.36]
[1718942002583,15.0921,132.74,132.65,43.19]
[1718942004379,15.0921,132.74,132.65,20.51]
[1718942004902,6.2749,132.75,132.67,51.36]
[1718942005080,6.2749,132.75,132.68,20.51]
[1718942005292,15.8968,132.77,132.68,20.51]
[1718942005790,15.8968,132.77,132.68,43.19]
[1718942005992,15.8968,132.77,132.68,59.0868]
[1718942006291,15.8968,132.77,132.68,36.4068]
[1718942006468,15.8968,132.77,132.68,59.0868]
[1718942007487,15.8968,132.77,132.68,36.4068]
[1718942007798,15.8968,132.77,132.68,20.51]
[1718942010590,15.8968,132.77,132.68,20.0]
[1718942010790,0.51,132.76,132.68,20.0]
[1718942012090,15.8968,132.77,132.68,20.0]
[1718942012595,15.8968,132.77,132.69,0.17]
[1718942012792,15.8968,132.77,132.69,0.34]
[1718942014083,15.8968,132.77,132.7,0.17]
[1718942014284,15.8968,132.77,132.7,0.34]
[1718942015070,15.8968,132.77,132.7,20.34]
[1718942015793,6.0682,132.78,132.71,0.17]
[1718942016097,6.0682,132.78,132.71,0.34]
[1718942016296,6.0682,132.78,132.72,0.17]
[1718942016693,6.0682,132.78,132.71,0.34]
[1718942016887,6.0682,132.78,132.72,0.17]
[1718942018591,6.0682,132.78,132.71,0.34]
[1718942020690,6.0682,132.78,132.72,0.17]
[1718942026485,6.0682,132.78,132.72,0.34]
[1718942029582,15.466,132.77,132.7,20.0]
[1718942029815,15.806,132.77,132.7,20.0]
[1718942029988,15.806,132.77,132.67,20.0]
[1718942030506,15.466,132.77,132.67,42.68]
[1718942030712,15.466,132.77,132.67,20.0]
[1718942031514,15.466,132.77,132.67,42.68]
[1718942031910,15.466,132.77,132.68,0.34]
[1718942032996,15.466,132.77,132.69,0.17]
[1718942039428,15.466,132.77,132.73,9.56]
[1718942039720,15.466,132.77,132.74,20.0]
[1718942041019,15.466,132.77,132.73,9.56]
[1718942041224,15.466,132.77,132.74,20.0]
[1718942045923,25.026,132.77,132.69,20.0]
[1718942046113,25.026,132.77,132.71,9.56]
[1718942046308,25.026,132.77,132.72,20.0]
[1718942047104,15.466,132.77,132.72,29.56]
[1718942047929,15.466,132.77,132.72,20.0]
[1718942047930,6.3719,132.76,132.72,20.0]
[1718942048129,15.9319,132.76,132.71,9.56]
[1718942048334,15.9319,132.76,132.72,20.0]
[1718942050710,15.9319,132.76,132.71,9.56]
[1718942050910,15.9319,132.76,132.72,20.0]
[1718942052934,15.9319,132.76,132.71,9.56]
[1718942053235,6.3719,132.76,132.72,20.0]
[1718942053441,9.56,132.75,132.69,9.56]
[1718942053631,9.56,132.75,132.7,20.0]
[1718942054326,15.9319,132.76,132.7,29.56]
[1718942054532,6.3719,132.76,132.71,9.56]
[1718942054740,15.9319,132.76,132.72,20.0]
[1718942055265,6.3719,132.76,132.72,20.0]
[1718942056645,9.56,132.75,132.69,9.56]
[1718942056938,9.56,132.75,132.7,20.0]
[1718942057838,9.56,132.75,132.66,36.77530329]
[1718942058017,9.56,132.75,132.7,9.56]
[1718942058217,9.56,132.75,132.71,20.0]
[1718942060521,16.1019,132.76,132.71,20.0]
[1718942060723,16.1019,132.76,132.67,20.0]
[1718942061014,16.1019,132.76,132.7,9.56]
[1718942061219,16.1019,132.76,132.71,29.56]
[1718942061431,16.1019,132.76,132.72,20.0]
[1718942062237,16.1019,132.76,132.71,20.0]
[1718942062842,16.1019,132.76,132.7,9.56]
[1718942063140,16.1019,132.76,132.71,20.0]
[1718942064618,16.1019,132.76,132.7,9.56]
[1718942064830,16.1019,132.76,132.71,20.0]
[1718942066113,16.1019,132.76,132.7,9.56]
[1718942066340,16.1019,132.76,132.71,20.0]
[1718942067438,6.5419,132.76,132.71,20.0]
[1718942067741,9.9,132.75,132.7,9.56]
[1718942067942,9.9,132.75,132.71,20.0]
[1718942068124,9.56,132.75,132.71,20.0]
[1718942068328,9.56,132.75,132.7,9.56]
[1718942068632,9.56,132.75,132.71,20.0]
[1718942068942,9.56,132.75,132.69,9.56]
[1718942069141,9.56,132.75,132.7,20.0]
[1718942071239,6.3719,132.76,132.7,20.0]
[1718942071446,6.3719,132.76,132.71,9.56]
[1718942071944,6.3719,132.76,132.72,20.0]
[1718942072643,15.9319,132.76,132.71,9.56]
[1718942072822,15.9319,132.76,132.72,20.0]
[1718942073423,15.9319,132.76,132.71,9.56]
[1718942073631,15.9319,132.76,132.72,20.0]
[1718942076150,15.9319,132.76,132.71,9.56]
[1718942076353,15.9319,132.76,132.72,20.0]
[1718942077142,6.3719,132.76,132.72,20.0]
[1718942077445,15.9319,132.76,132.72,20.0]
[1718942077633,6.3719,132.76,132.72,20.0]
[1718942078547,15.9319,132.76,132.71,9.56]
[1718942078742,15.9319,132.76,132.72,20.0]
[1718942079448,15.9319,132.76,132.71,20.0]
[1718942079745,9.9,132.75,132.71,20.0]
[1718942079948,9.9,132.75,132.7,20.0]
[1718942080837,9.9,132.75,132.69,9.56]
[1718942081038,9.9,132.75,132.7,20.0]
[1718942081457,0.34,132.75,132.7,29.56]
[1718942082063,15.9319,132.76,132.7,29.56]
[1718942084636,6.3719,132.76,132.71,9.56]
[1718942084840,6.3719,132.76,132.72,29.56]
[1718942086561,6.0547,132.8,132.75,9.56]
[1718942086764,6.0547,132.8,132.76,29.56]
[1718942086968,6.0547,132.8,132.76,20.0]
[1718942087341,6.0547,132.8,132.73,20.0]
[1718942089455,15.6147,132.8,132.75,9.56]
[1718942089642,15.6147,132.8,132.76,20.0]
[1718942090639,6.0547,132.8,132.76,20.0]
[1718942092941,6.0547,132.8,132.76,29.56]
[1718942094557,6.0547,132.8,132.76,20.0]
[1718942096664,6.0547,132.8,132.74,9.56]
[1718942096665,9.56,132.79,132.74,9.56]
[1718942096965,15.6147,132.8,132.75,20.0]
[1718942097164,15.6147,132.8,132.75,29.56]
[1718942097655,15.6147,132.8,132.75,20.0]
[1718942097856,15.6147,132.8,132.74,9.56]
[1718942098051,15.6147,132.8,132.75,20.0]
[1718942098367,6.0547,132.8,132.75,20.0]
[1718942098579,15.6147,132.8,132.75,20.0]
[1718942099195,9.56,132.78,132.75,20.0]
[1718942099477,9.56,132.78,132.74,20.0]
[1718942099863,0.17,132.79,132.74,20.0]
[1718942100064,9.56,132.78,132.73,20.0]
[1718942101161,0.17,132.79,132.73,29.56]
[1718942101349,6.0547,132.8,132.73,29.56]
[1718942101549,9.73,132.79,132.73,20.0]
[1718942101771,9.73,132.79,132.74,9.56]
[1718942101956,9.73,132.79,132.75,20.0]
[1718942102366,6.0547,132.8,132.75,20.0]
[1718942102557,6.0547,132.8,132.76,9.56]
[1718942102869,6.0547,132.8,132.77,20.0]
[1718942105664,6.0547,132.8,132.77,29.56]
[1718942105852,6.0547,132.8,132.78,9.56]
[1718942106053,6.0547,132.8,132.79,20.0]
[1718942106461,15.5034,132.81,132.79,20.0]
[1718942106674,0.8161767,132.82,132.79,9.56]
[1718942106853,0.8161767,132.82,132.8,20.0]
[1718942107758,0.8161767,132.82,132.75,20.0]
[1718942107959,0.8161767,132.82,132.8,9.56]
[1718942108258,0.8161767,132.82,132.81,20.0]
[1718942108969,0.8161767,132.82,132.79,20.0]
[1718942109172,10.3761767,132.82,132.79,20.0]
[1718942109464,10.3761767,132.82,132.75,20.0]
[1718942109672,0.8161767,132.82,132.75,20.0]
[1718942110365,0.8161767,132.82,132.77,9.56]
[1718942110559,0.8161767,132.82,132.78,20.0]
[1718942111553,10.3761767,132.82,132.78,20.0]
[1718942111770,10.3761767,132.82,132.76,9.56]
[1718942111963,10.3761767,132.82,132.77,20.0]
[1718942112581,0.8161767,132.82,132.77,9.56]
[1718942112877,0.8161767,132.82,132.81,9.56]
[1718942113077,0.8161767,132.82,132.81,29.56]
[1718942119896,0.8161767,132.82,132.81,20.0]
[1718942120374,16.4580767,132.82,132.76,9.56]
[1718942120582,9.56,132.81,132.77,20.0]
[1718942120776,9.56,132.81,132.75,20.0]
[1718942120777,9.56,132.81,132.76,9.56]
[1718942121089,9.56,132.81,132.77,20.0]
[1718942121682,16.4580767,132.82,132.77,20.0]
[1718942121870,16.4580767,132.82,132.76,9.56]
[1718942122289,16.4580767,132.82,132.72,62.3458072]
[1718942122498,16.4580767,132.82,132.76,9.56]
[1718942123380,16.4580767,132.82,132.77,20.0]
[1718942123694,9.56,132.81,132.77,20.0]
[1718942124191,6.8980767,132.82,132.77,20.0]
[1718942124374,15.8264,132.79,132.73,29.56]
[1718942124688,25.3864,132.79,132.73,20.0]
[1718942124874,25.3864,132.79,132.74,9.56]
[1718942125075,15.8264,132.79,132.75,20.0]
[1718942125892,25.3864,132.79,132.7,20.0]
[1718942126097,25.3864,132.79,132.73,9.56]
[1718942126279,25.3864,132.79,132.74,20.0]
[1718942126884,25.3864,132.79,132.73,9.56]
[1718942127068,25.3864,132.79,132.74,20.0]
[1718942127273,6.1988,132.77,132.74,20.0]
[1718942127574,6.1988,132.77,132.72,9.56]
[1718942127781,6.1988,132.77,132.73,20.0]
[1718942129197,6.1988,132.77,132.73,29.56]
[1718942129498,6.1988,132.77,132.74,9.56]
[1718942129669,6.1988,132.77,132.75,29.56]
[1718942129873,6.1988,132.77,132.76,20.0]
[1718942130487,15.8264,132.79,132.76,20.0]
[1718942130890,15.8264,132.79,132.73,20.0]
[1718942131472,15.8264,132.79,132.74,9.56]
[1718942131674,15.8264,132.79,132.75,29.56]
[1718942131898,15.8264,132.79,132.76,20.0]
[1718942133393,15.8264,132.79,132.72,0.17]
[1718942133394,15.8264,132.79,132.72,9.56]
[1718942133580,9.56,132.78,132.73,20.0]
[1718942135180,9.56,132.78,132.73,29.56]
[1718942135879,9.56,132.78,132.73,20.0]
[1718942136099,9.56,132.78,132.73,9.56]
[1718942136306,9.56,132.78,132.74,20.0]
[1718942139904,9.56,132.78,132.73,9.56]
[1718942140211,9.56,132.78,132.74,20.0]
[1718942142991,16.0729,132.76,132.7,20.0]
[1718942143191,16.0729,132.76,132.7,9.56]
[1718942143502,16.0729,132.76,132.71,20.0]
[1718942144497,15.8921,132.74,132.69,9.56]
[1718942144695,15.8921,132.74,132.7,20.0]
[1718942145305,15.8921,132.74,132.69,9.56]
[1718942145506,15.8921,132.74,132.7,20.0]
[1718942145691,15.8921,132.74,132.71,9.56]
[1718942145893,15.8921,132.74,132.72,20.0]
[1718942146503,6.5129,132.76,132.72,20.0]
[1718942146916,16.0729,132.76,132.72,20.0]
[1718942147898,16.0729,132.76,132.71,20.0]
[1718942148510,6.5129,132.76,132.71,20.0]
[1718942148815,6.5129,132.76,132.72,9.56]
[1718942148999,6.5129,132.76,132.73,20.0]
[1718942149499,6.5129,132.76,132.73,29.56]
[1718942151713,6.5129,132.76,132.73,20.0]
[1718942152897,22.7993,132.8,132.75,9.56]
[1718942153309,22.7993,132.8,132.76,20.0]
[1718942153517,22.7993,132.8,132.76,29.56]
[1718942154704,22.7993,132.8,132.76,20.0]
[1718942154905,22.7993,132.8,132.76,9.56]
[1718942155106,22.7993,132.8,132.77,20.0]
[1718942155905,22.7993,132.8,132.76,20.0]
[1718942158220,0.8161767,132.82,132.77,9.56]
[1718942158521,0.8161767,132.82,132.78,20.0]
[1718942160514,0.8161767,132.82,132.78,29.56]
[1718942160715,0.8161767,132.82,132.79,9.56]
[1718942160921,0.8161767,132.82,132.8,20.0]
[1718942162419,0.8161767,132.82,132.79,20.0]
[1718942164431,0.8161767,132.82,132.79,29.56]
[1718942164728,0.8161767,132.82,132.81,9.56]
[1718942165025,0.8161767,132.82,132.81,29.56]
[1718942167226,0.8161767,132.82,132.81,20.0]
[1718942167415,0.8161767,132.82,132.79,9.56]
[1718942167804,0.8161767,132.82,132.8,20.0]
[1718942170406,0.8161767,132.82,132.79,9.56]
[1718942170726,0.8161767,132.82,132.8,20.0]
[1718942170927,0.8161767,132.82,132.78,9.56]
[1718942171130,0.8161767,132.82,132.79,20.0]
[1718942175728,33.2404767,132.82,132.79,20.0]
[1718942176028,33.2404767,132.82,132.78,20.0]
[1718942176723,33.2404767,132.82,132.77,9.56]
[1718942177035,33.2404767,132.82,132.78,20.0]
[1718942178442,23.6804767,132.82,132.78,20.0]
[1718942178808,23.6804767,132.82,132.78,29.56]
[1718942180121,23.6804767,132.82,132.78,20.0]
[1718942181120,0.34,132.81,132.76,20.0]
[1718942181321,23.6804767,132.82,132.72,32.24]
[1718942181634,33.2404767,132.82,132.76,9.56]
[1718942181838,33.2404767,132.82,132.77,9.56]
[1718942182740,33.2404767,132.82,132.78,20.0]
[1718942184042,33.2404767,132.82,132.76,9.56]
[1718942184343,33.2404767,132.82,132.77,20.0]
[1718942184531,9.56,132.81,132.77,20.0]
[1718942185630,23.6804767,132.82,132.77,29.56]
[1718942185830,23.6804767,132.82,132.78,9.56]
[1718942186216,23.6804767,132.82,132.79,20.0]
[1718942188027,23.6804767,132.82,132.78,20.0]
[1718942188354,23.6804767,132.82,132.77,9.56]
[1718942188523,23.6804767,132.82,132.78,20.0]
[1718942188838,33.2404767,132.82,132.78,20.0]
[1718942190424,23.6804767,132.82,132.77,9.56]
[1718942190654,23.6804767,132.82,132.78,20.0]
[1718942190833,23.6804767,132.82,132.77,9.56]
[1718942191034,23.6804767,132.82,132.78,20.0]
[1718942194338,23.6804767,132.82,132.78,29.56]
[1718942194339,0.8161767,132.82,132.78,29.56]
[1718942194530,0.8161767,132.82,132.79,9.56]
[1718942194848,0.8161767,132.82,132.8,20.0]
[1718942195542,0.8161767,132.82,132.8,29.56]
[1718942195726,0.8161767,132.82,132.8,9.56]
[1718942195922,0.8161767,132.82,132.81,20.0]
[1718942197024,0.8161767,132.82,132.81,29.56]
[1718942198252,0.8161767,132.82,132.81,20.0]
[1718942198438,0.8161767,132.82,132.8,9.56]
[1718942198755,0.8161767,132.82,132.81,20.0]
[1718942199341,0.8161767,132.82,132.81,9.56]
[1718942199728,0.8161767,132.82,132.81,29.56]
[1718942200439,0.8161767,132.82,132.81,20.0]
[1718942200641,0.8161767,132.82,132.76,42.68]
[1718942200838,0.8161767,132.82,132.81,9.56]
[1718942201030,0.8161767,132.82,132.81,29.56]
[1718942204054,0.8161767,132.82,132.81,20.0]
[1718942204228,0.8161767,132.82,132.81,9.56]
[1718942204433,0.8161767,132.82,132.81,29.56]
[1718942204650,0.8161767,132.82,132.81,20.0]
[1718942204853,0.8161767,132.82,132.81,9.56]
[1718942205147,0.8161767,132.82,132.81,29.56]
[1718942206551,0.8161767,132.82,132.81,29.73]
[1718942207656,0.8161767,132.82,132.81,29.56]
[1718942208735,0.8161767,132.82,132.81,20.0]
[1718942208934,0.8161767,132.82,132.81,9.56]
[1718942209147,0.8161767,132.82,132.81,29.56]
[1718942210334,0.8161767,132.82,132.81,20.0]
[1718942210552,0.8161767,132.82,132.79,9.56]
[1718942210762,0.8161767,132.82,132.8,20.0]
[1718942210940,0.8161767,132.82,132.76,42.5649]
[1718942211137,0.8161767,132.82,132.79,9.56]
[1718942211345,0.8161767,132.82,132.8,20.0]
[1718942211844,0.8161767,132.82,132.8,9.56]
[1718942212039,0.8161767,132.82,132.81,20.0]
[1718942213864,0.8161767,132.82,132.8,9.56]
[1718942214062,0.8161767,132.82,132.81,20.0]
[1718942215865,0.8161767,132.82,132.81,29.56]
[1718942219246,0.8161767,132.82,132.81,20.0]
[1718942219447,0.8161767,132.82,132.77,22.68]
[1718942219649,0.8161767,132.82,132.81,9.56]
[1718942219849,0.8161767,132.82,132.81,29.56]
[1718942220061,0.8161767,132.82,132.81,20.0]
[1718942220442,0.8161767,132.82,132.78,43.19]
[1718942220659,0.8161767,132.82,132.79,9.56]
[1718942220969,0.8161767,132.82,132.81,9.56]
[1718942221445,0.8161767,132.82,132.81,29.56]
[1718942223351,22.6652,132.92,132.81,52.75]
[1718942223555,22.6652,132.92,132.87,9.56]
[1718942223753,22.6652,132.92,132.82,20.51]
[1718942223979,9.56,132.91,132.85,9.56]
[1718942224261,9.56,132.91,132.86,29.56]
[1718942224458,9.56,132.91,132.87,20.0]
[1718942225457,22.6652,132.92,132.87,20.0]
[1718942225768,10.3761767,132.95,132.86,9.56]
[1718942226066,10.3761767,132.95,132.9,9.56]
[1718942226264,0.8161767,132.95,132.91,20.0]
[1718942226565,9.56,132.94,132.91,20.0]
[1718942226965,9.56,132.94,132.9,20.0]
[1718942227168,9.56,132.94,132.89,20.0]
[1718942227771,9.56,132.9,132.89,20.0]
[1718942228065,9.56,132.9,132.86,20.0]
[1718942228263,9.56,132.89,132.86,20.0]
[1718942228565,9.56,132.88,132.83,20.0]
[1718942228876,9.56,132.88,132.83,9.56]
[1718942229558,9.56,132.87,132.82,9.56]